bitfinex/quotes_BTCUSD_20240723
["timestamp","ask_amount","ask_price","bid_price","bid_amount"]
[1721759221794,1.073152,65956.0,65955.0,0.13528287]
[1721759223733,1.073152,65956.0,65955.0,0.13528697]
[1721759224200,1.11855952,65956.0,65955.0,0.13528697]
[1721759224649,1.291952,65956.0,65955.0,0.009372]
[1721759224845,1.73603202,65956.0,65955.0,0.009372]
[1721759225045,2.161952,65956.0,65955.0,0.009372]
[1721759225498,2.25279716,65956.0,65955.0,0.009372]
[1721759225705,2.66214665,65956.0,65955.0,0.009372]
[1721759225879,2.62873815,65956.0,65955.0,0.009372]
[1721759226301,2.515184,65956.0,65955.0,0.009372]
[1721759227300,2.615184,65956.0,65955.0,0.009372]
[1721759227506,1.845184,65956.0,65955.0,0.009372]
[1721759227711,1.99214665,65956.0,65955.0,0.009372]
[1721759228310,1.740184,65956.0,65955.0,0.009372]
[1721759228513,1.834184,65956.0,65955.0,0.009372]
[1721759228714,1.734184,65956.0,65955.0,0.009372]
[1721759228951,2.478184,65956.0,65955.0,0.009372]
[1721759229358,2.259384,65956.0,65955.0,0.009372]
[1721759229726,2.272384,65956.0,65955.0,0.009372]
[1721759230207,2.245384,65956.0,65955.0,0.009372]
[1721759230369,2.259384,65956.0,65955.0,0.009372]
[1721759230568,2.273384,65956.0,65955.0,0.009372]
[1721759230777,2.259384,65956.0,65955.0,0.009372]
[1721759230949,2.257384,65956.0,65955.0,0.009372]
[1721759231350,2.259384,65956.0,65955.0,0.009372]
[1721759231611,1.213688,65956.0,65955.0,0.009372]
[1721759231809,0.77292,65956.0,65955.0,0.13528264]
[1721759232120,1.076152,65956.0,65955.0,0.13528264]
[1721759232313,1.18101174,65956.0,65955.0,0.13528264]
[1721759232443,1.090152,65956.0,65955.0,0.009372]
[1721759232801,1.2037264,65956.0,65955.0,0.009372]
[1721759233005,1.18973562,65956.0,65955.0,0.009372]
[1721759233204,1.20172094,65956.0,65955.0,0.009372]
[1721759233504,0.87248894,65956.0,65955.0,0.009372]
[1721759233740,0.76892,65956.0,65955.0,0.009372]
[1721759233960,0.77592,65956.0,65955.0,0.13528751]
[1721759234160,0.76892,65956.0,65955.0,0.13528751]
[1721759234568,0.8657914,65956.0,65955.0,0.13528751]
[1721759235511,0.77492,65956.0,65955.0,0.13528751]
[1721759236409,0.23661257,65956.0,65955.0,0.13528751]
[1721759236621,0.53984457,65956.0,65955.0,0.13528751]
[1721759236820,0.08499657,65956.0,65955.0,0.13528751]
[1721759237021,0.23661257,65956.0,65955.0,0.13528751]
[1721759237675,0.168456,65956.0,65955.0,0.13528751]
[1721759238633,0.471688,65956.0,65955.0,0.13528751]
[1721759238830,0.01684,65956.0,65955.0,0.51152542]
[1721759239032,0.01684,65956.0,65955.0,0.9339976]
[1721759239262,0.01684,65956.0,65955.0,0.933971]
[1721759239452,0.01684,65956.0,65955.0,1.237208]
[1721759239974,0.00684,65956.0,65955.0,0.74706343]
[1721759240212,0.00684,65956.0,65955.0,0.59544543]
[1721759240445,0.00684,65956.0,65955.0,0.27516091]
[1721759240446,0.75892,65956.0,65955.0,0.27516091]
[1721759240610,0.75892,65956.0,65955.0,0.13526091]
[1721759240611,1.062152,65956.0,65955.0,0.13526091]
[1721759240760,1.10859399,65956.0,65955.0,0.13726091]
[1721759240956,1.063152,65956.0,65955.0,0.011372]
[1721759241176,1.063152,65956.0,65955.0,0.010372]
[1721759241177,1.45726799,65956.0,65955.0,0.010372]
[1721759241375,1.366384,65956.0,65955.0,0.010372]
[1721759241586,1.369384,65956.0,65955.0,0.009372]
[1721759241985,1.066152,65956.0,65955.0,0.009372]
[1721759245816,1.17970505,65956.0,65955.0,0.009372]
[1721759246848,1.658584,65956.0,65955.0,0.009372]
[1721759246968,1.90560391,65956.0,65955.0,0.009372]
[1721759247176,2.04186486,65956.0,65955.0,0.009372]
[1721759247396,1.90560391,65956.0,65955.0,0.009372]
[1721759248013,1.90160391,65956.0,65955.0,0.009372]
[1721759248237,2.06256656,65956.0,65955.0,0.009372]
[1721759249240,2.07650682,65956.0,65955.0,0.009372]
[1721759249421,1.91554417,65956.0,65955.0,0.009372]
[1721759249650,2.21877617,65956.0,65955.0,0.009372]
[1721759249848,1.92954417,65956.0,65955.0,0.009372]
[1721759250251,1.91554417,65956.0,65955.0,0.009372]
[1721759251067,1.92954417,65956.0,65955.0,0.009372]
[1721759251362,2.70954417,65956.0,65955.0,0.009372]
[1721759251593,2.69554417,65956.0,65955.0,0.009372]
[1721759251809,2.70954417,65956.0,65955.0,0.009372]
[1721759253535,3.01277617,65956.0,65955.0,0.009372]
[1721759253762,3.15973882,65956.0,65955.0,0.009372]
[1721759253947,3.01277617,65956.0,65955.0,0.009372]
[1721759265136,3.33976825,65956.0,65955.0,0.009372]
[1721759265794,0.15,65948.0,65944.0,0.009372]
[1721759266039,0.15,65948.0,65934.0,0.009372]
[1721759266040,0.15,65935.0,65934.0,0.009372]
[1721759266242,0.446466,65934.0,65933.0,0.009383]
[1721759266454,2.41348491,65934.0,65933.0,0.009383]
[1721759266631,3.47044656,65934.0,65933.0,0.009383]
[1721759267059,3.32348391,65934.0,65933.0,0.009383]
[1721759267745,3.43665348,65934.0,65933.0,0.009383]
[1721759267900,3.33748391,65934.0,65933.0,0.009383]
[1721759268117,3.35148391,65934.0,65933.0,0.009383]
[1721759268480,0.15,65930.0,65925.0,0.509383]
[1721759268686,1.54204791,65930.0,65925.0,0.509383]
[1721759268894,2.55210391,65930.0,65925.0,0.509383]
[1721759269100,2.85545591,65930.0,65925.0,0.509383]
[1721759269664,2.55210391,65930.0,65925.0,0.509383]
[1721759269864,2.54257335,65930.0,65925.0,0.509383]
[1721759270070,2.34555344,65930.0,65925.0,0.509383]
[1721759270274,2.34555344,65930.0,65926.0,0.0625]
[1721759270275,1.465084,65930.0,65926.0,0.0625]
[1721759270874,1.51032042,65930.0,65926.0,0.0625]
[1721759271077,1.465084,65930.0,65925.0,0.584483]
[1721759271308,1.51031533,65930.0,65925.0,0.509383]
[1721759271516,1.515084,65930.0,65925.0,0.509383]
[1721759271725,1.57431987,65930.0,65925.0,0.509383]
[1721759271975,1.58831987,65930.0,65925.0,0.509383]
[1721759272176,1.479084,65930.0,65925.0,0.509383]
[1721759273526,1.493084,65930.0,65925.0,0.509383]
[1721759274155,1.479084,65930.0,65925.0,0.509383]
[1721759274383,1.62604665,65930.0,65925.0,0.509383]
[1721759274607,1.493084,65930.0,65925.0,0.509383]
[1721759276215,2.353084,65930.0,65925.0,0.509383]
[1721759277225,2.049732,65930.0,65925.0,0.509383]
[1721759278311,1.189732,65930.0,65925.0,0.509383]
[1721759278857,0.179676,65930.0,65925.0,0.509383]
[1721759279082,0.179676,65930.0,65929.0,0.30485]
[1721759279083,0.028,65930.0,65929.0,0.30485]
[1721759279282,0.028,65930.0,65929.0,0.611]
[1721759279575,0.028,65930.0,65929.0,0.7341586]
[1721759279776,0.028,65930.0,65929.0,0.2791246]
[1721759280201,0.014,65930.0,65929.0,0.2791246]
[1721759280408,0.303327,65936.0,65932.0,0.0657]
[1721759280578,0.303322,65937.0,65933.0,0.1287466]
[1721759280783,0.151666,65934.0,65933.0,0.002794]
[1721759281145,0.454999,65934.0,65933.0,0.12873378]
[1721759281343,0.151666,65934.0,65933.0,0.26523978]
[1721759281664,0.69656325,65947.0,65933.0,0.26523978]
[1721759281915,0.303283,65945.0,65935.0,0.1393]
[1721759282133,0.1,65946.0,65936.0,0.12873378]
[1721759282134,0.151659,65937.0,65936.0,0.12873378]
[1721759282447,0.454978,65937.0,65936.0,0.12593978]
[1721759282689,1.061634,65936.0,65935.0,0.1393]
[1721759284177,0.75831,65936.0,65935.0,0.1393]
[1721759284351,0.76431,65936.0,65935.0,0.1393]
[1721759284786,0.76431,65936.0,65935.0,0.26523992]
[1721759284787,0.167662,65936.0,65935.0,0.26523992]
[1721759284988,0.161662,65936.0,65935.0,0.26523992]
[1721759285390,0.161662,65936.0,65935.0,0.72023292]
[1721759285391,0.011,65936.0,65935.0,0.72023292]
[1721759285549,0.011,65936.0,65935.0,0.26523992]
[1721759285967,0.011,65936.0,65935.0,0.41690392]
[1721759286166,0.001,65936.0,65935.0,0.41690392]
[1721759286626,0.005,65936.0,65935.0,0.41690392]
[1721759286836,0.005,65936.0,65935.0,1.04464191]
[1721759287059,0.00084,65937.0,65936.0,0.454986]
[1721759287253,0.00084,65937.0,65936.0,0.73073348]
[1721759287460,0.00084,65937.0,65936.0,0.72793948]
[1721759288292,0.00484,65937.0,65936.0,0.72793948]
[1721759288699,0.00484,65937.0,65936.0,0.84597742]
[1721759288902,0.00484,65937.0,65936.0,0.98587742]
[1721759290059,0.00484,65937.0,65936.0,0.86783331]
[1721759290465,0.00484,65937.0,65936.0,0.56450931]
[1721759291074,0.00484,65937.0,65936.0,0.41284731]
[1721759291478,0.156499,65937.0,65936.0,0.2658274]
[1721759291889,0.151666,65934.0,65933.0,0.000924]
[1721759292100,0.758332,65934.0,65933.0,0.12686592]
[1721759292307,0.00465752,65937.0,65934.0,0.002794]
[1721759292510,0.00465752,65937.0,65935.0,0.12594192]
[1721759292511,0.151664,65936.0,65935.0,0.12594192]
[1721759293024,0.151662,65936.0,65935.0,0.12593549]
[1721759293229,0.454986,65936.0,65935.0,0.12593549]
[1721759294049,0.455986,65936.0,65935.0,0.12693549]
[1721759294857,0.455986,65936.0,65935.0,0.003]
[1721759295059,0.455986,65936.0,65935.0,0.12893903]
[1721759295060,0.152662,65936.0,65935.0,0.12893903]
[1721759295264,0.455986,65936.0,65935.0,0.12893903]
[1721759296086,0.455986,65936.0,65935.0,0.003]
[1721759296289,0.001,65936.0,65935.0,0.12893664]
[1721759296888,0.001,65936.0,65935.0,0.58392964]
[1721759297115,0.001,65936.0,65935.0,0.28060064]
[1721759297877,0.001,65936.0,65935.0,0.73094955]
[1721759298302,0.001,65936.0,65935.0,0.42762055]
[1721759298500,0.001,65936.0,65935.0,0.73094955]
[1721759299723,0.001,65936.0,65935.0,1.17927855]
[1721759300246,0.001,65936.0,65935.0,1.48260755]
[1721759300452,0.001,65936.0,65935.0,1.73260755]
[1721759300589,0.001,65936.0,65935.0,1.70560755]
[1721759301432,0.001,65936.0,65935.0,1.70360755]
[1721759301839,0.00065752,65937.0,65936.0,1.061634]
[1721759302036,0.00065752,65937.0,65936.0,1.03126655]
[1721759302270,0.00065752,65937.0,65936.0,0.72794255]
[1721759302477,0.00065752,65937.0,65936.0,0.72792693]
[1721759303529,0.00065752,65937.0,65936.0,0.42460293]
[1721759303730,0.00065752,65937.0,65936.0,0.27294093]
[1721759304039,0.00065752,65937.0,65936.0,0.12592102]
[1721759304040,1.09267057,65937.0,65936.0,0.12592102]
[1721759304242,1.09267057,65937.0,65933.0,0.000924]
[1721759304243,0.151666,65934.0,65933.0,0.000924]
[1721759304471,1.13515442,65934.0,65933.0,0.000924]
[1721759304674,1.061665,65934.0,65933.0,0.000924]
[1721759306055,1.075665,65934.0,65933.0,0.001924]
[1721759307079,1.089665,65934.0,65933.0,0.001924]
[1721759307279,1.075665,65934.0,65933.0,0.000924]
[1721759307727,1.089665,65934.0,65933.0,0.001924]
[1721759307899,1.392998,65934.0,65933.0,0.001924]
[1721759308311,1.442998,65934.0,65933.0,0.001924]
[1721759308512,2.23925091,65934.0,65933.0,0.001924]
[1721759309093,2.97925091,65934.0,65933.0,0.001924]
[1721759315130,3.28258391,65934.0,65933.0,0.001924]
[1721759316504,3.50138391,65934.0,65933.0,0.001924]
[1721759316812,1.958936,65930.0,65929.0,0.009372]
[1721759316940,3.02908994,65930.0,65929.0,0.009372]
[1721759317377,3.33244194,65930.0,65929.0,0.009372]
[1721759317577,3.33244194,65930.0,65925.0,0.509383]
[1721759317578,1.515165,65926.0,65925.0,0.509383]
[1721759317784,0.303471,65904.0,65903.0,0.0821]
[1721759318007,0.758677,65904.0,65903.0,0.0821]
[1721759318180,1.062148,65904.0,65903.0,0.0821]
[1721759319615,1.063148,65904.0,65903.0,0.0841]
[1721759320501,1.366619,65904.0,65903.0,0.002]
[1721759320772,1.366619,65904.0,65903.0,0.002924]
[1721759321187,1.432819,65904.0,65903.0,0.002924]
[1721759321475,1.482819,65904.0,65903.0,0.002924]
[1721759321674,1.481819,65904.0,65903.0,0.002924]
[1721759322104,1.79629,65904.0,65903.0,0.000924]
[1721759322307,2.29027256,65904.0,65903.0,0.000924]
[1721759322509,2.96927256,65904.0,65903.0,0.000924]
[1721759322755,2.98027256,65904.0,65903.0,0.000924]
[1721759323333,2.96827256,65904.0,65903.0,0.000924]
[1721759323537,2.86827256,65904.0,65903.0,0.000924]
[1721759323743,2.89627256,65904.0,65903.0,0.000924]
[1721759324116,2.99627256,65904.0,65903.0,0.000924]
[1721759324324,2.98227256,65904.0,65903.0,0.000924]
[1721759324521,2.88227256,65904.0,65903.0,0.000924]
[1721759324700,2.89627256,65904.0,65903.0,0.000924]
[1721759324900,2.88227256,65904.0,65903.0,0.000924]
[1721759325111,2.72130991,65904.0,65903.0,0.000924]
[1721759325310,2.83530991,65904.0,65903.0,0.000924]
[1721759325489,2.72130991,65904.0,65903.0,0.000924]
[1721759325898,2.73530991,65904.0,65903.0,0.000924]
[1721759326104,2.82130991,65904.0,65903.0,0.000924]
[1721759326648,2.43183891,65904.0,65903.0,0.000924]
[1721759326847,1.74183891,65904.0,65903.0,0.000924]
[1721759327048,2.19227256,65904.0,65903.0,0.000924]
[1721759327247,3.08627256,65904.0,65903.0,0.000924]
[1721759327450,2.30627256,65904.0,65903.0,0.000924]
[1721759327657,2.29227256,65904.0,65903.0,0.000924]
[1721759327858,3.10227256,65904.0,65903.0,0.000924]
[1721759328067,3.11627256,65904.0,65903.0,0.000924]
[1721759328243,2.56583891,65904.0,65903.0,0.000924]
[1721759328629,2.53783891,65904.0,65903.0,0.000924]
[1721759328854,2.56583891,65904.0,65903.0,0.000924]
[1721759329078,2.57459082,65904.0,65903.0,0.000924]
[1721759329283,2.57459082,65904.0,65891.0,0.002794]
[1721759329284,0.265565,65891.0,65890.0,0.009394]
[1721759329490,0.95584691,65891.0,65890.0,0.009394]
[1721759329695,2.06643991,65891.0,65890.0,0.009394]
[1721759330878,2.83643991,65891.0,65890.0,0.009394]
[1721759331867,2.84643991,65891.0,65890.0,0.009394]
[1721759332925,2.85243991,65891.0,65890.0,0.009394]
[1721759333907,3.07123991,65891.0,65890.0,0.009394]
[1721759334316,3.17934501,65891.0,65890.0,0.009394]
[1721759336332,3.07934501,65891.0,65890.0,0.009394]
[1721759336560,3.17934501,65891.0,65890.0,0.009394]
[1721759336757,3.07123991,65891.0,65890.0,0.009394]
[1721759339350,3.07123991,65891.0,65882.0,0.0147754]
[1721759339351,3.07123991,65891.0,65873.0,0.1451]
[1721759339505,1.062631,65874.0,65873.0,0.1286634]
[1721759340962,1.063631,65874.0,65873.0,0.1286634]
[1721759341523,1.064631,65874.0,65873.0,0.1286634]
[1721759344186,1.064631,65874.0,65873.0,0.1192694]
[1721759344590,1.36824,65874.0,65873.0,0.0528694]
[1721759344809,1.36824,65874.0,65867.0,0.070094]
[1721759344810,1.062729,65868.0,65867.0,0.070094]
[1721759345313,1.366366,65868.0,65867.0,0.19616517]
[1721759345522,1.062729,65868.0,65867.0,0.070094]
[1721759346447,1.062729,65868.0,65867.0,0.19616463]
[1721759346647,0.759092,65868.0,65867.0,0.19616463]
[1721759347017,1.062729,65868.0,65867.0,0.19616463]
[1721759347224,1.062729,65868.0,65867.0,0.27436463]
[1721759348630,1.064729,65868.0,65867.0,0.27436463]
[1721759349305,1.064729,65868.0,65867.0,0.27436562]
[1721759350235,1.062729,65868.0,65867.0,0.27436562]
[1721759350392,1.064729,65868.0,65867.0,0.27436562]
[1721759350596,1.368366,65868.0,65867.0,0.13546562]
[1721759350802,1.368366,65868.0,65867.0,0.009394]
[1721759351413,1.368366,65868.0,65867.0,0.13547459]
[1721759351649,1.062729,65868.0,65867.0,0.13547372]
[1721759351930,1.064729,65868.0,65867.0,0.21227372]
[1721759352253,1.064729,65868.0,65867.0,0.27807372]
[1721759352254,0.761092,65868.0,65867.0,0.27807372]
[1721759352432,0.761092,65868.0,65867.0,0.27806977]
[1721759352685,1.064729,65868.0,65867.0,0.27806977]
[1721759353026,1.069729,65868.0,65867.0,0.27806977]
[1721759353229,1.062729,65868.0,65867.0,0.27806977]
[1721759353481,1.070729,65868.0,65867.0,0.27806977]
[1721759353924,1.062729,65868.0,65867.0,0.27806977]
[1721759354092,0.455455,65868.0,65867.0,0.27806977]
[1721759354291,0.765092,65868.0,65867.0,0.27806977]
[1721759354493,0.006,65868.0,65867.0,0.27806977]
[1721759354883,0.157818,65868.0,65867.0,0.27806977]
[1721759355095,0.461455,65868.0,65867.0,0.27806977]
[1721759355286,0.006,65868.0,65867.0,0.27806977]
[1721759355514,0.157818,65868.0,65867.0,0.27806204]
[1721759356240,0.151817,65869.0,65867.0,0.27806204]
[1721759356457,0.151816,65869.0,65868.0,0.12886204]
[1721759356615,0.151816,65869.0,65868.0,0.12606804]
[1721759356811,0.151814,65870.0,65868.0,0.12606804]
[1721759357013,0.304452,65874.0,65869.0,0.12886204]
[1721759357014,0.00084,65874.0,65869.0,0.12886204]
[1721759357222,0.00084,65874.0,65873.0,0.455421]
[1721759357424,0.00084,65874.0,65873.0,0.27266804]
[1721759357632,0.00084,65874.0,65873.0,0.87510895]
[1721759357984,0.00084,65874.0,65873.0,1.35343501]
[1721759359048,0.00084,65874.0,65873.0,1.50033199]
[1721759359643,0.00784,65874.0,65873.0,1.50033199]
[1721759359776,0.01184,65874.0,65873.0,1.50033199]
[1721759359976,0.00484,65874.0,65873.0,1.50033199]
[1721759360192,0.00084,65874.0,65873.0,1.50033199]
[1721759360554,0.00084,65874.0,65873.0,1.50333199]
[1721759360555,0.00184,65874.0,65873.0,1.50333199]
[1721759360796,0.00184,65874.0,65873.0,2.05694599]
[1721759361036,0.00184,65874.0,65873.0,2.69427299]
[1721759361303,0.00184,65874.0,65873.0,2.64427299]
[1721759361588,0.00184,65874.0,65873.0,2.69427299]
[1721759361836,0.00184,65874.0,65873.0,2.69178113]
[1721759362089,0.00184,65874.0,65873.0,2.64178113]
[1721759362355,0.00184,65874.0,65873.0,2.19120448]
[1721759362595,0.00084,65874.0,65873.0,2.73587956]
[1721759362861,0.00184,65874.0,65873.0,2.73687956]
[1721759363078,0.00184,65874.0,65873.0,3.44885621]
[1721759363319,0.00084,65874.0,65873.0,3.44785621]
[1721759363585,0.00084,65874.0,65873.0,3.44885621]
[1721759363832,0.00284,65874.0,65873.0,3.45385621]
[1721759364080,0.00184,65874.0,65873.0,3.45085621]
[1721759364317,0.00084,65874.0,65873.0,3.44585621]
[1721759364507,0.00284,65874.0,65873.0,3.45485621]
[1721759364945,0.00284,65874.0,65873.0,3.45393894]
[1721759365353,0.00184,65874.0,65873.0,3.44593894]
[1721759365552,0.00084,65874.0,65873.0,3.45293894]
[1721759365757,0.00184,65874.0,65873.0,3.45493894]
[1721759365931,0.00284,65874.0,65873.0,3.75093894]
[1721759366280,0.00184,65874.0,65873.0,3.74993894]
[1721759366748,0.00284,65874.0,65873.0,3.75093894]
[1721759367100,0.00184,65874.0,65873.0,3.74993894]
[1721759367304,0.00284,65874.0,65873.0,3.75093894]
[1721759367705,0.00184,65874.0,65873.0,3.74293894]
[1721759368000,0.00284,65874.0,65873.0,3.74799273]
[1721759368408,0.00284,65874.0,65873.0,3.74299273]
[1721759368532,0.00384,65874.0,65873.0,3.74799273]
[1721759368907,0.00284,65874.0,65873.0,3.74299273]
[1721759369354,0.00184,65874.0,65873.0,3.74199273]
[1721759369481,0.00284,65874.0,65873.0,3.74299273]
[1721759369686,0.00284,65874.0,65873.0,1.699806]
[1721759369897,0.458253,65874.0,65873.0,0.74134257]
[1721759370147,1.205471,65874.0,65873.0,0.12601557]
[1721759370348,0.14384,65874.0,65873.0,0.001]
[1721759370558,0.600253,65874.0,65873.0,0.001]
[1721759370731,0.155644,65874.0,65873.0,0.14801991]
[1721759370935,0.155644,65874.0,65873.0,0.14701991]
[1721759370936,0.154644,65874.0,65873.0,0.14701991]
[1721759371138,0.152644,65874.0,65873.0,0.27307683]
[1721759371316,0.00184,65874.0,65873.0,0.001]
[1721759371516,0.154644,65874.0,65873.0,0.006]
[1721759371719,0.458253,65874.0,65873.0,0.006]
[1721759371909,0.458253,65874.0,65873.0,0.001]
[1721759372103,0.154644,65874.0,65873.0,0.14801991]
[1721759372350,0.460253,65874.0,65873.0,0.14801991]
[1721759372557,0.459253,65874.0,65873.0,0.14701991]
[1721759372757,0.465253,65874.0,65873.0,0.14701991]
[1721759373208,0.155644,65874.0,65873.0,0.14701991]
[1721759373662,0.156644,65874.0,65873.0,0.14701991]
[1721759373876,0.156644,65874.0,65873.0,0.36022691]
[1721759373877,0.00484,65874.0,65873.0,0.36022691]
[1721759374079,0.00484,65874.0,65873.0,0.33447602]
[1721759374080,0.00084,65874.0,65873.0,0.33447602]
[1721759374288,0.00084,65874.0,65873.0,0.33347279]
[1721759374460,0.00284,65874.0,65873.0,0.33547279]
[1721759374785,0.00284,65874.0,65873.0,0.33347279]
[1721759375401,0.761862,65874.0,65873.0,0.13005288]
[1721759375639,0.761862,65874.0,65873.0,0.004]
[1721759375640,0.458253,65874.0,65873.0,0.004]
[1721759375813,0.456253,65874.0,65873.0,0.004]
[1721759375991,0.456253,65874.0,65873.0,0.005]
[1721759376191,0.456253,65874.0,65873.0,0.13105563]
[1721759376367,0.456253,65874.0,65873.0,0.005]
[1721759376572,0.759862,65874.0,65873.0,0.004]
[1721759376944,0.761862,65874.0,65873.0,0.004]
[1721759377095,0.458253,65874.0,65873.0,0.004]
[1721759377299,0.151811,65872.0,65867.0,0.164007]
[1721759377498,0.151811,65871.0,65868.0,0.27307619]
[1721759377697,0.151811,65871.0,65869.0,0.12885028]
[1721759377904,0.151811,65871.0,65870.0,0.27307619]
[1721759378875,0.00084,65874.0,65870.0,0.27307619]
[1721759379076,0.00084,65874.0,65871.0,0.12885028]
[1721759379306,0.151807,65873.0,65872.0,0.27307619]
[1721759380137,0.154645,65874.0,65872.0,0.27307619]
[1721759380340,0.152645,65874.0,65873.0,0.12885028]
[1721759380552,0.156807,65873.0,65872.0,0.14701991]
[1721759380791,0.156807,65873.0,65872.0,0.27307579]
[1721759381114,0.005,65873.0,65872.0,0.27307579]
[1721759381317,0.005,65873.0,65872.0,0.44944039]
[1721759381981,0.00084,65874.0,65872.0,0.44944039]
[1721759382178,0.00184,65874.0,65873.0,0.12884988]
[1721759382386,0.00184,65874.0,65873.0,0.27586979]
[1721759382598,0.00084,65874.0,65873.0,0.27307579]
[1721759383664,0.00084,65874.0,65873.0,0.27307577]
[1721759383890,0.456253,65874.0,65873.0,0.27307577]
[1721759384106,0.456253,65874.0,65873.0,0.27807577]
[1721759384323,1.206671,65874.0,65873.0,0.13105586]
[1721759385360,1.206671,65874.0,65873.0,0.12605586]
[1721759385571,1.214671,65874.0,65873.0,0.12605586]
[1721759385762,1.218671,65874.0,65873.0,0.12605586]
[1721759386566,0.151818,65869.0,65867.0,0.012188]
[1721759386765,0.151816,65869.0,65868.0,0.12605975]
[1721759387051,0.455448,65869.0,65868.0,0.12885375]
[1721759387416,0.151816,65869.0,65868.0,0.12885375]
[1721759387919,0.455448,65869.0,65868.0,0.12885375]
[1721759388146,0.456448,65869.0,65868.0,0.13385375]
[1721759388328,0.76008,65869.0,65868.0,0.13385375]
[1721759388972,1.062712,65869.0,65868.0,0.12885375]
[1721759389090,1.062712,65869.0,65868.0,0.12605975]
[1721759389572,0.759092,65868.0,65867.0,0.009394]
[1721759390020,0.759092,65868.0,65867.0,0.13546645]
[1721759390222,1.124029,65868.0,65867.0,0.13546645]
[1721759390427,1.124029,65868.0,65867.0,0.009394]
[1721759390428,1.062729,65868.0,65867.0,0.009394]
[1721759390657,1.062729,65868.0,65867.0,0.13546755]
[1721759391239,1.062729,65868.0,65867.0,0.009394]
[1721759391659,1.063729,65868.0,65867.0,0.014394]
[1721759391999,1.062729,65868.0,65867.0,0.009394]
[1721759392401,1.075729,65868.0,65867.0,0.010394]
[1721759392904,1.067729,65868.0,65867.0,0.010394]
[1721759393494,1.062729,65868.0,65867.0,0.009394]
[1721759393842,1.072729,65868.0,65867.0,0.009394]
[1721759394504,0.771092,65868.0,65867.0,0.009394]
[1721759394680,0.767092,65868.0,65867.0,0.009394]
[1721759395080,0.762092,65868.0,65867.0,0.009394]
[1721759395502,0.767092,65868.0,65867.0,0.009394]
[1721759395945,0.762092,65868.0,65867.0,0.009394]
[1721759396353,0.461455,65868.0,65867.0,0.009394]
[1721759396682,0.462455,65868.0,65867.0,0.009394]
[1721759396891,0.766092,65868.0,65867.0,0.009394]
[1721759397091,0.762092,65868.0,65867.0,0.009394]
[1721759397292,0.003,65868.0,65867.0,0.1364693]
[1721759397518,0.154818,65868.0,65867.0,0.1364693]
[1721759398097,0.003,65868.0,65867.0,0.1364693]
[1721759399061,0.003,65868.0,65867.0,0.43531021]
[1721759399319,0.003,65868.0,65867.0,0.30923491]
[1721759399527,0.003,65868.0,65867.0,0.73893665]
[1721759400264,0.003,65868.0,65867.0,1.36078782]
[1721759400470,0.003,65868.0,65867.0,1.72712076]
[1721759400712,0.003,65868.0,65867.0,2.21986276]
[1721759400899,0.003,65868.0,65867.0,0.79305468]
[1721759401100,0.003,65868.0,65867.0,0.51255468]
[1721759401509,0.004,65868.0,65867.0,0.80353665]
[1721759401872,0.004,65868.0,65867.0,1.10717865]
[1721759402083,0.00084,65874.0,65869.0,0.151814]
[1721759402084,0.152645,65874.0,65869.0,0.151814]
[1721759402285,0.00084,65874.0,65873.0,0.151807]
[1721759402569,0.00084,65874.0,65873.0,0.72848891]
[1721759402778,0.00084,65874.0,65873.0,0.42487491]
[1721759402988,0.00084,65874.0,65873.0,0.72848891]
[1721759403408,0.00084,65874.0,65873.0,0.76098832]
[1721759403612,0.00084,65874.0,65873.0,1.06460232]
[1721759403815,0.00084,65874.0,65873.0,1.64691632]
[1721759404150,0.00084,65874.0,65873.0,1.64791632]
[1721759404776,0.00184,65874.0,65873.0,1.65391632]
[1721759404974,0.00184,65874.0,65873.0,1.82315421]
[1721759405179,0.00184,65874.0,65873.0,1.81715372]
[1721759405376,0.00284,65874.0,65873.0,1.87414621]
[1721759405827,0.00284,65874.0,65873.0,2.64962129]
[1721759406033,0.00284,65874.0,65873.0,4.00663529]
[1721759406237,0.00284,65874.0,65873.0,3.54162129]
[1721759406571,0.00384,65874.0,65873.0,3.32382129]
[1721759407046,0.00284,65874.0,65873.0,3.54362129]
[1721759407257,0.00284,65874.0,65873.0,3.74753312]
[1721759407258,0.00384,65874.0,65873.0,3.74753312]
[1721759407544,0.00184,65874.0,65873.0,3.85452955]
[1721759407712,0.00284,65874.0,65873.0,4.17014355]
[1721759407913,0.00184,65874.0,65873.0,4.15814355]
[1721759408155,0.00184,65874.0,65873.0,3.7413898]
[1721759408156,0.00084,65874.0,65873.0,3.7413898]
[1721759408279,0.00184,65874.0,65873.0,3.57061886]
[1721759408490,0.00184,65874.0,65873.0,4.0094849]
[1721759408800,0.00184,65874.0,65873.0,3.8046849]
[1721759409001,0.00284,65874.0,65873.0,3.8046849]
[1721759409224,0.00184,65874.0,65873.0,3.7906849]
[1721759409428,0.00184,65874.0,65873.0,3.93964755]
[1721759409755,0.00184,65874.0,65873.0,3.93764755]
[1721759409900,0.00184,65874.0,65873.0,3.72110982]
[1721759409901,0.00284,65874.0,65873.0,3.72110982]
[1721759410101,0.00284,65874.0,65873.0,3.77110982]
[1721759410325,0.00184,65874.0,65873.0,3.77010982]
[1721759410532,0.00184,65874.0,65873.0,3.8700709]
[1721759410736,0.00284,65874.0,65873.0,4.01803355]
[1721759411282,0.00284,65874.0,65873.0,4.03103355]
[1721759411394,0.00184,65874.0,65873.0,3.72452111]
[1721759411606,0.00184,65874.0,65873.0,3.91885787]
[1721759411814,0.00184,65874.0,65873.0,4.01881895]
[1721759412029,0.00284,65874.0,65873.0,3.88285787]
[1721759412263,0.00284,65874.0,65873.0,4.03281895]
[1721759412465,0.00284,65874.0,65873.0,4.71663295]
[1721759412636,0.00284,65874.0,65873.0,4.55723295]
[1721759414596,0.00284,65874.0,65873.0,4.55700392]
[1721759416543,0.00284,65874.0,65873.0,4.55500392]
[1721759417518,0.00284,65874.0,65873.0,4.55700392]
[1721759417743,0.00284,65874.0,65873.0,4.26293511]
[1721759417957,0.00284,65874.0,65873.0,4.55675016]